[Event "*** Titled Tuesday Blitz"]
[Site "Chess.com"]
[Date "2021.03.30"]
[Round "1"]
[White "Gentlejimmy7"]
[Black "BrandonJacobson"]
[Result "0-1"]
[WhiteElo "2471"]
[BlackElo "2970"]
[TimeControl "180+1"]
[EndTime "10:08:34 PDT"]
[Termination "BrandonJacobson won by checkmate"]

1. d4 {[%clk 0:03:00.9]} 1... d5 {[%clk 0:02:59]} 2. g3 {[%clk 0:02:55.8]} 2...
Bf5 {[%clk 0:02:57.5]} 3. Bg2 {[%clk 0:02:55]} 3... e6 {[%clk 0:02:57.1]} 4. c4
{[%clk 0:02:54.5]} 4... c6 {[%clk 0:02:56.5]} 5. Qb3 {[%clk 0:02:54.3]} 5... Qb6
{[%clk 0:02:55.8]} 6. c5 {[%clk 0:02:54.6]} 6... Qc7 {[%clk 0:02:43.7]} 7. Bf4
{[%clk 0:02:41.6]} 7... Qc8 {[%clk 0:02:43.2]} 8. Nc3 {[%clk 0:02:36.4]} 8...
Nd7 {[%clk 0:02:41.1]} 9. Nf3 {[%clk 0:02:26.6]} 9... h6 {[%clk 0:02:33.4]} 10.
O-O {[%clk 0:02:22.8]} 10... Ngf6 {[%clk 0:02:33.1]} 11. Ne5 {[%clk 0:02:17.2]}
11... Nxe5 {[%clk 0:02:29.5]} 12. Bxe5 {[%clk 0:02:16.5]} 12... Nd7 {[%clk
0:02:30.1]} 13. Bf4 {[%clk 0:02:13.8]} 13... e5 {[%clk 0:02:05.2]} 14. Bxe5
{[%clk 0:02:07.7]} 14... Nxe5 {[%clk 0:02:00.9]} 15. dxe5 {[%clk 0:02:08.6]}
15... Bxc5 {[%clk 0:01:50.6]} 16. Rac1 {[%clk 0:02:06.4]} 16... Bd4 {[%clk
0:01:50.9]} 17. Nxd5 {[%clk 0:01:39.5]} 17... Bxe5 {[%clk 0:01:50.9]} 18. Qa3
{[%clk 0:01:16.5]} 18... Qd7 {[%clk 0:01:42.8]} 19. Nb6 {[%clk 0:01:07.3]} 19...
axb6 {[%clk 0:01:28.5]} 20. Qxa8+ {[%clk 0:01:05.9]} 20... Qc8 {[%clk 0:01:29]}
21. Qa3 {[%clk 0:00:51.1]} 21... Be6 {[%clk 0:01:16.5]} 22. Rfd1 {[%clk
0:00:51.1]} 22... Bf6 {[%clk 0:01:09.9]} 23. Rd2 {[%clk 0:00:49.1]} 23... Be7
{[%clk 0:01:05.4]} 24. Qe3 {[%clk 0:00:49.6]} 24... b5 {[%clk 0:00:58.2]} 25. a3
{[%clk 0:00:43.6]} 25... O-O {[%clk 0:00:58.2]} 26. Rcd1 {[%clk 0:00:43.1]}
26... Bf6 {[%clk 0:00:55.2]} 27. Qb6 {[%clk 0:00:42.4]} 27... Bg4 {[%clk
0:00:51.5]} 28. Bf3 {[%clk 0:00:40.6]} 28... Bh3 {[%clk 0:00:48.5]} 29. e3
{[%clk 0:00:40]} 29... Qf5 {[%clk 0:00:46.5]} 30. Bg2 {[%clk 0:00:37.4]} 30...
Bxg2 {[%clk 0:00:31.7]} 31. Kxg2 {[%clk 0:00:38.3]} 31... Qc8 {[%clk 0:00:26.6]}
32. h3 {[%clk 0:00:35.1]} 32... h5 {[%clk 0:00:26.8]} 33. Rd7 {[%clk 0:00:34.8]}
33... Bxb2 {[%clk 0:00:21.5]} 34. Rd8 {[%clk 0:00:31.1]} 34... Qe6 {[%clk
0:00:19.8]} 35. Rxf8+ {[%clk 0:00:27.6]} 35... Kxf8 {[%clk 0:00:20.7]} 36. Rd8+
{[%clk 0:00:27.4]} 36... Ke7 {[%clk 0:00:21.3]} 37. Qc7+ {[%clk 0:00:23.3]}
37... Kf6 {[%clk 0:00:21.7]} 38. Rd6 {[%clk 0:00:23.8]} 38... Bxa3 {[%clk
0:00:13.3]} 39. Rxe6+ {[%clk 0:00:23.6]} 39... Kxe6 {[%clk 0:00:14.2]} 40. Qxb7
{[%clk 0:00:23.9]} 40... Kd6 {[%clk 0:00:14.4]} 41. Qxf7 {[%clk 0:00:23.7]}
41... c5 {[%clk 0:00:15.1]} 42. Qf8+ {[%clk 0:00:20.6]} 42... Kd5 {[%clk
0:00:15.1]} 43. Qf5+ {[%clk 0:00:20.2]} 43... Kc4 {[%clk 0:00:15.1]} 44. Qc2+
{[%clk 0:00:20.2]} 44... Kb4 {[%clk 0:00:15.3]} 45. Qb1+ {[%clk 0:00:20.4]}
45... Ka4 {[%clk 0:00:15.1]} 46. Qe4+ {[%clk 0:00:20.4]} 46... c4 {[%clk
0:00:15]} 47. Qc2+ {[%clk 0:00:20.4]} 47... Kb4 {[%clk 0:00:15.2]} 48. Qb1+
{[%clk 0:00:20.5]} 48... Kc5 {[%clk 0:00:15.3]} 49. Kf3 {[%clk 0:00:21.1]} 49...
b4 {[%clk 0:00:15.3]} 50. Ke4 {[%clk 0:00:21.4]} 50... b3 {[%clk 0:00:15.9]} 51.
Qa1 {[%clk 0:00:20.7]} 51... Kb4 {[%clk 0:00:16]} 52. Qd4 {[%clk 0:00:19.9]}
52... b2 {[%clk 0:00:16]} 53. Qb6+ {[%clk 0:00:20.2]} 53... Kc3 {[%clk
0:00:16.6]} 54. Kd5 {[%clk 0:00:20]} 54... Kc2 {[%clk 0:00:09.8]} 55. Kxc4
{[%clk 0:00:18.3]} 55... b1=Q {[%clk 0:00:10.4]} 56. Qxb1+ {[%clk 0:00:18.7]}
56... Kxb1 {[%clk 0:00:11.3]} 57. Kd3 {[%clk 0:00:19.2]} 57... Kc1 {[%clk
0:00:09]} 58. g4 {[%clk 0:00:18.6]} 58... h4 {[%clk 0:00:08.7]} 59. Ke4 {[%clk
0:00:18.4]} 59... Kd2 {[%clk 0:00:07.9]} 60. f4 {[%clk 0:00:17]} 60... Ke2
{[%clk 0:00:08]} 61. g5 {[%clk 0:00:15.8]} 61... Kf2 {[%clk 0:00:08.5]} 62. Kf5
{[%clk 0:00:15.6]} 62... Kg3 {[%clk 0:00:08.2]} 63. Kg6 {[%clk 0:00:16]} 63...
Bb2 {[%clk 0:00:06.7]} 64. e4 {[%clk 0:00:14.2]} 64... Kxf4 {[%clk 0:00:07.1]}
65. Kh5 {[%clk 0:00:12]} 65... Kg3 {[%clk 0:00:07.5]} 66. Kg6 {[%clk 0:00:10.6]}
66... Kxh3 {[%clk 0:00:07.9]} 67. Kf5 {[%clk 0:00:11.4]} 67... Kg3 {[%clk
0:00:08.4]} 68. e5 {[%clk 0:00:11.1]} 68... Bxe5 {[%clk 0:00:08.3]} 69. Kxe5
{[%clk 0:00:11.5]} 69... h3 {[%clk 0:00:08.8]} 70. g6 {[%clk 0:00:12.4]} 70...
h2 {[%clk 0:00:08.8]} 71. Ke6 {[%clk 0:00:13.3]} 71... h1=Q {[%clk 0:00:09.3]}
72. Kf7 {[%clk 0:00:14.2]} 72... Qb7+ {[%clk 0:00:09.8]} 73. Kg8 {[%clk
0:00:14.2]} 73... Kg4 {[%clk 0:00:10.7]} 74. Kh7 {[%clk 0:00:15.1]} 74... Kg5
{[%clk 0:00:10.9]} 75. Kg8 {[%clk 0:00:16]} 75... Kxg6 {[%clk 0:00:11.4]} 76.
Kh8 {[%clk 0:00:16.8]} 76... Qc8# {[%clk 0:00:11.6]} 0-1

[Event "*** Titled Tuesday Blitz"]
[Site "Chess.com"]
[Date "2021.03.30"]
[Round "1"]
[White "ViktoriyaTarasova"]
[Black "Vuk2000"]
[Result "1/2-1/2"]
[WhiteElo "2409"]
[BlackElo "2738"]
[TimeControl "180+1"]
[EndTime "10:08:37 PDT"]
[Termination "Game drawn by repetition"]

1. d4 {[%clk 0:03:00.9]} 1... Nf6 {[%clk 0:02:59.7]} 2. c4 {[%clk 0:03:00.4]}
2... e6 {[%clk 0:02:57.8]} 3. Nc3 {[%clk 0:03:00]} 3... Bb4 {[%clk 0:02:58]} 4.
Nf3 {[%clk 0:02:59.7]} 4... O-O {[%clk 0:02:58]} 5. e3 {[%clk 0:02:58]} 5... d5
{[%clk 0:02:56.8]} 6. Bd3 {[%clk 0:02:57.4]} 6... c5 {[%clk 0:02:56.8]} 7. cxd5
{[%clk 0:02:53.8]} 7... exd5 {[%clk 0:02:49.6]} 8. O-O {[%clk 0:02:51.7]} 8...
c4 {[%clk 0:02:49.4]} 9. Bc2 {[%clk 0:02:45.6]} 9... Bg4 {[%clk 0:02:48.5]} 10.
h3 {[%clk 0:02:43]} 10... Bh5 {[%clk 0:02:48.3]} 11. Bd2 {[%clk 0:02:21.7]}
11... Nc6 {[%clk 0:02:42.8]} 12. a3 {[%clk 0:02:18]} 12... Bxc3 {[%clk
0:02:40.8]} 13. Bxc3 {[%clk 0:02:18.1]} 13... b5 {[%clk 0:02:38.3]} 14. g4
{[%clk 0:02:03.1]} 14... Bg6 {[%clk 0:02:34.1]} 15. Ne5 {[%clk 0:01:56.9]} 15...
Bxc2 {[%clk 0:02:15.1]} 16. Qxc2 {[%clk 0:01:53]} 16... Qd6 {[%clk 0:02:13.5]}
17. f3 {[%clk 0:01:37.7]} 17... a5 {[%clk 0:02:06.6]} 18. g5 {[%clk 0:01:21.1]}
18... Nd7 {[%clk 0:02:01.1]} 19. Nxc6 {[%clk 0:01:14.5]} 19... Qxc6 {[%clk
0:02:00.9]} 20. e4 {[%clk 0:01:15]} 20... Qg6 {[%clk 0:01:53]} 21. Qg2 {[%clk
0:00:56.9]} 21... Nb6 {[%clk 0:01:51.3]} 22. Rae1 {[%clk 0:00:45.9]} 22... Rfe8
{[%clk 0:01:47.9]} 23. Re2 {[%clk 0:00:35.7]} 23... Qd6 {[%clk 0:01:29.4]} 24.
Rfe1 {[%clk 0:00:34]} 24... b4 {[%clk 0:01:28.3]} 25. axb4 {[%clk 0:00:33.1]}
25... axb4 {[%clk 0:01:27.9]} 26. e5 {[%clk 0:00:23.5]} 26... Qe7 {[%clk
0:01:26.9]} 27. Bd2 {[%clk 0:00:23.2]} 27... Ra2 {[%clk 0:01:00.8]} 28. Bc1
{[%clk 0:00:22.8]} 28... Qe6 {[%clk 0:00:59.3]} 29. f4 {[%clk 0:00:21.9]} 29...
Qf5 {[%clk 0:00:58.5]} 30. Qg4 {[%clk 0:00:19.9]} 30... Qxg4+ {[%clk 0:00:56.9]}
31. hxg4 {[%clk 0:00:19.1]} 31... Na4 {[%clk 0:00:54.2]} 32. f5 {[%clk
0:00:18.5]} 32... c3 {[%clk 0:00:40.2]} 33. b3 {[%clk 0:00:18.4]} 33... Rxe2
{[%clk 0:00:20.6]} 34. Rxe2 {[%clk 0:00:18.6]} 34... Nb6 {[%clk 0:00:21]} 35.
Ra2 {[%clk 0:00:15.4]} 35... g6 {[%clk 0:00:16.7]} 36. Ra6 {[%clk 0:00:13.7]}
36... Ra8 {[%clk 0:00:13.2]} 37. Rxa8+ {[%clk 0:00:10.2]} 37... Nxa8 {[%clk
0:00:13.3]} 38. Kf2 {[%clk 0:00:10.8]} 38... Nc7 {[%clk 0:00:06.6]} 39. Ke3
{[%clk 0:00:10.9]} 39... Kf8 {[%clk 0:00:06.9]} 40. Kd3 {[%clk 0:00:11.2]} 40...
Ke7 {[%clk 0:00:07.3]} 41. Bf4 {[%clk 0:00:10.5]} 41... Nb5 {[%clk 0:00:06.2]}
42. Bc1 {[%clk 0:00:10.1]} 42... Na7 {[%clk 0:00:06.4]} 43. Kc2 {[%clk
0:00:09.5]} 43... Nc6 {[%clk 0:00:06.2]} 44. Kd3 {[%clk 0:00:10.1]} 44... Kd7
{[%clk 0:00:06.4]} 45. Bf4 {[%clk 0:00:09.6]} 45... gxf5 {[%clk 0:00:04.9]} 46.
gxf5 {[%clk 0:00:09.3]} 46... Ne7 {[%clk 0:00:05.4]} 47. e6+ {[%clk 0:00:05.4]}
47... fxe6 {[%clk 0:00:05.1]} 48. f6 {[%clk 0:00:06.1]} 48... Ng6 {[%clk
0:00:05.2]} 49. Be5 {[%clk 0:00:04.7]} 49... Nxe5+ {[%clk 0:00:04.6]} 50. dxe5
{[%clk 0:00:04.6]} 50... Ke8 {[%clk 0:00:05]} 51. Kc2 {[%clk 0:00:03.8]} 51...
Kf7 {[%clk 0:00:05.6]} 52. Kd3 {[%clk 0:00:04.4]} 52... Kg6 {[%clk 0:00:05.7]}
53. Kc2 {[%clk 0:00:05]} 53... d4 {[%clk 0:00:04.1]} 54. Kd3 {[%clk 0:00:04.9]}
54... Kf7 {[%clk 0:00:05]} 55. Kc2 {[%clk 0:00:05.1]} 55... Kg6 {[%clk
0:00:05.9]} 56. Kd3 {[%clk 0:00:05.6]} 56... Kf7 {[%clk 0:00:06.4]} 57. Kc2
{[%clk 0:00:06.1]} 57... Kg8 {[%clk 0:00:07.3]} 58. Kd3 {[%clk 0:00:06.1]} 58...
Kf8 {[%clk 0:00:08.2]} 59. Kc2 {[%clk 0:00:06.6]} 59... Kf7 {[%clk 0:00:09.1]}
60. Kd3 {[%clk 0:00:07.2]} 60... Kg6 {[%clk 0:00:10]} 61. Kc2 {[%clk 0:00:07.6]}
61... Kf7 {[%clk 0:00:07.8]} 62. Kd3 {[%clk 0:00:07.7]} 62... Kg6 {[%clk
0:00:08.2]} 63. Kc2 {[%clk 0:00:07.9]} 63... Kf7 {[%clk 0:00:08.7]} 1/2-1/2

[Event "*** Titled Tuesday Blitz"]
[Site "Chess.com"]
[Date "2021.03.30"]
[Round "1"]
[White "swimmerchess"]
[Black "lucachess49"]
[Result "1-0"]
[WhiteElo "2825"]
[BlackElo "2434"]
[TimeControl "180+1"]
[EndTime "10:08:38 PDT"]
[Termination "swimmerchess won by resignation"]

1. e4 {[%clk 0:03:00.9]} 1... e5 {[%clk 0:02:53.9]} 2. Nf3 {[%clk 0:03:00.2]}
2... Nc6 {[%clk 0:02:53.8]} 3. Bb5 {[%clk 0:03:00.7]} 3... a6 {[%clk 0:02:51.5]}
4. Ba4 {[%clk 0:03:00.5]} 4... Nf6 {[%clk 0:02:50.1]} 5. O-O {[%clk 0:03:01.1]}
5... Be7 {[%clk 0:02:50.7]} 6. Re1 {[%clk 0:03:01.1]} 6... b5 {[%clk 0:02:50.6]}
7. Bb3 {[%clk 0:03:01.7]} 7... d6 {[%clk 0:02:51.5]} 8. c3 {[%clk 0:03:01.5]}
8... O-O {[%clk 0:02:51]} 9. h3 {[%clk 0:03:01.9]} 9... Na5 {[%clk 0:02:50.3]}
10. Bc2 {[%clk 0:03:01.4]} 10... c5 {[%clk 0:02:51.2]} 11. d4 {[%clk 0:03:01.4]}
11... Qc7 {[%clk 0:02:51]} 12. Nbd2 {[%clk 0:03:01.6]} 12... Nc6 {[%clk
0:02:47.3]} 13. d5 {[%clk 0:03:00.7]} 13... Nd8 {[%clk 0:02:47]} 14. a4 {[%clk
0:02:59]} 14... Rb8 {[%clk 0:02:46.8]} 15. b3 {[%clk 0:02:56.7]} 15... g6 {[%clk
0:02:32]} 16. c4 {[%clk 0:02:52.3]} 16... b4 {[%clk 0:02:01.2]} 17. Nf1 {[%clk
0:02:50.5]} 17... Nh5 {[%clk 0:02:01.1]} 18. g4 {[%clk 0:02:28.2]} 18... Nf4
{[%clk 0:01:51.4]} 19. Bxf4 {[%clk 0:02:22.9]} 19... exf4 {[%clk 0:01:52.3]} 20.
Qd2 {[%clk 0:02:16]} 20... Bf6 {[%clk 0:01:44.6]} 21. Rad1 {[%clk 0:02:15.4]}
21... Bc3 {[%clk 0:01:40.1]} 22. Qxf4 {[%clk 0:02:15.7]} 22... Bxe1 {[%clk
0:01:40.7]} 23. Rxe1 {[%clk 0:02:16.6]} 23... f6 {[%clk 0:01:41.2]} 24. Ne3
{[%clk 0:02:07.8]} 24... Qe7 {[%clk 0:01:39.9]} 25. Qg3 {[%clk 0:02:04.9]} 25...
Nf7 {[%clk 0:01:39.5]} 26. Nd2 {[%clk 0:01:59.3]} 26... Bd7 {[%clk 0:01:36.2]}
27. f4 {[%clk 0:01:58.8]} 27... Rbe8 {[%clk 0:01:35]} 28. h4 {[%clk 0:01:57.4]}
28... Kh8 {[%clk 0:01:27.9]} 29. Nf3 {[%clk 0:01:56.5]} 29... g5 {[%clk
0:00:28.7]} 30. hxg5 {[%clk 0:01:54.5]} 30... fxg5 {[%clk 0:00:29.6]} 31. f5
{[%clk 0:01:54.2]} 31... Qf6 {[%clk 0:00:30]} 32. Kg2 {[%clk 0:01:46.9]} 32...
Qc3 {[%clk 0:00:28.3]} 33. Qh3 {[%clk 0:01:40.6]} 33... h6 {[%clk 0:00:18.4]}
34. Kf2 {[%clk 0:01:32.6]} 34... Re7 {[%clk 0:00:18.1]} 35. Rh1 {[%clk
0:01:29.6]} 35... Qf6 {[%clk 0:00:15.2]} 36. Qh5 {[%clk 0:01:16.6]} 36... Kg7
{[%clk 0:00:14.9]} 37. Ng2 {[%clk 0:01:03.5]} 37... Be8 {[%clk 0:00:14.4]} 38.
Qh2 {[%clk 0:01:01.1]} 38... Rh8 {[%clk 0:00:12.2]} 39. Ne3 {[%clk 0:00:45.5]}
39... Ne5 {[%clk 0:00:11.9]} 40. Nd2 {[%clk 0:00:39.9]} 40... h5 {[%clk
0:00:10.8]} 41. gxh5 {[%clk 0:00:36.6]} 41... Rxh5 {[%clk 0:00:11.7]} 42. Qg2
{[%clk 0:00:37.5]} 42... Qh6 {[%clk 0:00:10.6]} 43. Rxh5 {[%clk 0:00:34.7]}
43... Qxh5 {[%clk 0:00:11.5]} 44. Ndf1 {[%clk 0:00:31.4]} 44... Qh4+ {[%clk
0:00:07]} 45. Kg1 {[%clk 0:00:22]} 45... Bh5 {[%clk 0:00:06.9]} 46. Ng3 {[%clk
0:00:19.3]} 46... Nf3+ {[%clk 0:00:06.7]} 47. Kf2 {[%clk 0:00:18.2]} 47... Kf6
{[%clk 0:00:04.7]} 48. Kf1 {[%clk 0:00:14.6]} 48... g4 {[%clk 0:00:04.3]} 49.
Qf2 {[%clk 0:00:12.7]} 49... Nh2+ {[%clk 0:00:03]} 50. Kg1 {[%clk 0:00:11.7]}
50... Rg7 {[%clk 0:00:03.6]} 51. Qxh2 {[%clk 0:00:11.5]} 51... Qxh2+ {[%clk
0:00:03.7]} 52. Kxh2 {[%clk 0:00:12.4]} 52... Bf7 {[%clk 0:00:04]} 53. Bd1
{[%clk 0:00:11.7]} 53... Kg5 {[%clk 0:00:04.3]} 54. Nxg4 {[%clk 0:00:11.1]}
54... Rh7+ {[%clk 0:00:04.2]} 55. Kg2 {[%clk 0:00:11.4]} 55... Kf4 {[%clk
0:00:05.1]} 56. Nf6 {[%clk 0:00:08.7]} 56... Rg7 {[%clk 0:00:05.4]} 57. Ng4
{[%clk 0:00:08.3]} 57... Rg8 {[%clk 0:00:04.5]} 58. Kh3 {[%clk 0:00:07.9]} 58...
Rh8+ {[%clk 0:00:04.5]} 59. Kg2 {[%clk 0:00:08.5]} 59... Rg8 {[%clk 0:00:05.2]}
60. Kf2 {[%clk 0:00:08.8]} 60... Rxg4 {[%clk 0:00:03.6]} 61. Bxg4 {[%clk
0:00:09.7]} 61... Kxg4 {[%clk 0:00:04.5]} 62. Ne2 {[%clk 0:00:09.2]} 62... Be8
{[%clk 0:00:03.8]} 63. Ke3 {[%clk 0:00:09.6]} 63... Kg5 {[%clk 0:00:04.1]} 64.
Nf4 {[%clk 0:00:10]} 64... Kg4 {[%clk 0:00:04.6]} 65. Ne6 {[%clk 0:00:10]} 65...
Kg3 {[%clk 0:00:05]} 66. f6 {[%clk 0:00:10.1]} 66... Bf7 {[%clk 0:00:05.2]} 67.
Nd8 {[%clk 0:00:10.3]} 67... Bg6 {[%clk 0:00:05.5]} 68. f7 {[%clk 0:00:10.9]}
1-0

[Event "*** Titled Tuesday Blitz"]
[Site "Chess.com"]
[Date "2021.03.30"]
[Round "1"]
[White "jup1978"]
[Black "KeithArkell"]
[Result "0-1"]
[WhiteElo "2338"]
[BlackElo "2635"]
[TimeControl "180+1"]
[EndTime "10:08:41 PDT"]
[Termination "KeithArkell won on time"]

1. e4 {[%clk 0:03:00.9]} 1... c6 {[%clk 0:03:00.1]} 2. d4 {[%clk 0:02:59.8]}
2... d5 {[%clk 0:03:00.3]} 3. Nd2 {[%clk 0:02:59.6]} 3... dxe4 {[%clk
0:03:00.3]} 4. Nxe4 {[%clk 0:02:59.8]} 4... Nd7 {[%clk 0:03:00.5]} 5. Bc4 {[%clk
0:02:58.8]} 5... Ngf6 {[%clk 0:03:00.3]} 6. Ng5 {[%clk 0:02:58.8]} 6... e6
{[%clk 0:03:00]} 7. Qe2 {[%clk 0:02:59.3]} 7... Nb6 {[%clk 0:02:59.8]} 8. Bb3
{[%clk 0:02:59.9]} 8... h6 {[%clk 0:03:00.1]} 9. N5f3 {[%clk 0:03:00.4]} 9... a5
{[%clk 0:03:00.7]} 10. a3 {[%clk 0:02:52.5]} 10... a4 {[%clk 0:02:58.8]} 11. Ba2
{[%clk 0:02:51.5]} 11... c5 {[%clk 0:02:59.2]} 12. Ne5 {[%clk 0:02:43.8]} 12...
cxd4 {[%clk 0:02:55.8]} 13. Ngf3 {[%clk 0:02:43.5]} 13... Be7 {[%clk 0:02:50.3]}
14. Bf4 {[%clk 0:02:40]} 14... Nbd5 {[%clk 0:02:49]} 15. Bg3 {[%clk 0:02:37.1]}
15... Qb6 {[%clk 0:02:44.2]} 16. O-O {[%clk 0:02:26.5]} 16... O-O {[%clk
0:02:33]} 17. Rab1 {[%clk 0:02:11.1]} 17... Nh5 {[%clk 0:02:24.4]} 18. Rfd1
{[%clk 0:02:07.7]} 18... Nxg3 {[%clk 0:02:24.2]} 19. hxg3 {[%clk 0:02:08.6]}
19... Bc5 {[%clk 0:02:18.1]} 20. Nd3 {[%clk 0:02:08]} 20... Bd6 {[%clk
0:02:09.6]} 21. Nde5 {[%clk 0:02:01.3]} 21... Bc5 {[%clk 0:02:05.2]} 22. Nd3
{[%clk 0:02:00.4]} 22... Be7 {[%clk 0:02:05.3]} 23. Nde5 {[%clk 0:01:59.1]}
23... Bf6 {[%clk 0:02:05.3]} 24. Ng4 {[%clk 0:01:50.8]} 24... Bd7 {[%clk
0:01:35.1]} 25. Bxd5 {[%clk 0:01:45.3]} 25... exd5 {[%clk 0:01:36]} 26. Nxf6+
{[%clk 0:01:42.5]} 26... Qxf6 {[%clk 0:01:35.3]} 27. Nxd4 {[%clk 0:01:41.8]}
27... Rfe8 {[%clk 0:01:34.9]} 28. Qf3 {[%clk 0:01:41.1]} 28... Qxf3 {[%clk
0:01:33.2]} 29. gxf3 {[%clk 0:01:42]} 29... Bc6 {[%clk 0:01:33.1]} 30. Re1
{[%clk 0:01:40.7]} 30... g6 {[%clk 0:01:33.2]} 31. Kf1 {[%clk 0:01:38.4]} 31...
h5 {[%clk 0:01:33.4]} 32. f4 {[%clk 0:01:38.4]} 32... Kg7 {[%clk 0:01:33.1]} 33.
Rxe8 {[%clk 0:01:37.8]} 33... Rxe8 {[%clk 0:01:32.6]} 34. Re1 {[%clk 0:01:38.2]}
34... Rc8 {[%clk 0:01:31.4]} 35. c3 {[%clk 0:01:35.8]} 35... Kf6 {[%clk
0:01:31.4]} 36. Kg2 {[%clk 0:01:33.1]} 36... Bd7 {[%clk 0:01:23.8]} 37. Re5
{[%clk 0:01:25.3]} 37... Be6 {[%clk 0:01:23.2]} 38. Re2 {[%clk 0:01:20.2]} 38...
Rh8 {[%clk 0:01:16.6]} 39. f3 {[%clk 0:01:18.3]} 39... Rc8 {[%clk 0:01:13.4]}
40. Rd2 {[%clk 0:01:16.2]} 40... g5 {[%clk 0:01:08.5]} 41. f5 {[%clk 0:00:53.8]}
41... Bd7 {[%clk 0:01:07.3]} 42. g4 {[%clk 0:00:48.2]} 42... hxg4 {[%clk
0:01:02.1]} 43. fxg4 {[%clk 0:00:49.1]} 43... Rh8 {[%clk 0:00:59.7]} 44. Nf3
{[%clk 0:00:43.3]} 44... Bc6 {[%clk 0:00:55.5]} 45. Rd4 {[%clk 0:00:42.3]} 45...
Re8 {[%clk 0:00:55.3]} 46. Kf2 {[%clk 0:00:41.8]} 46... Re4 {[%clk 0:00:53.4]}
47. Rxe4 {[%clk 0:00:39.2]} 47... dxe4 {[%clk 0:00:54.3]} 48. Nd4 {[%clk
0:00:39.3]} 48... Ke5 {[%clk 0:00:50]} 49. Ke3 {[%clk 0:00:39.7]} 49... f6
{[%clk 0:00:45.3]} 50. Ne2 {[%clk 0:00:38.3]} 50... Bb5 {[%clk 0:00:43.4]} 51.
Nd4 {[%clk 0:00:34.3]} 51... Bc4 {[%clk 0:00:43.5]} 52. Nc2 {[%clk 0:00:24.4]}
52... Bb3 {[%clk 0:00:43.6]} 53. Nd4 {[%clk 0:00:18.2]} 53... Bd1 {[%clk
0:00:42.8]} 54. Ne6 {[%clk 0:00:11.7]} 54... Bxg4 {[%clk 0:00:42.5]} 55. Nc5
{[%clk 0:00:12.1]} 55... b5 {[%clk 0:00:40.7]} 56. Nd7+ {[%clk 0:00:08.7]} 56...
Kxf5 {[%clk 0:00:40]} 57. Nc5 {[%clk 0:00:08.3]} 57... Bf3 {[%clk 0:00:37.6]}
58. c4 {[%clk 0:00:08.5]} 58... bxc4 {[%clk 0:00:37.3]} 59. Nxa4 {[%clk
0:00:08.6]} 59... Bd1 {[%clk 0:00:15.1]} 60. Nb6 {[%clk 0:00:08]} 60... Bb3
{[%clk 0:00:10.4]} 61. a4 {[%clk 0:00:07.9]} 61... Ke5 {[%clk 0:00:08.5]} 62. a5
{[%clk 0:00:06.9]} 62... Kd6 {[%clk 0:00:08.7]} 63. Kxe4 {[%clk 0:00:05.8]}
63... Bc2+ {[%clk 0:00:06.7]} 64. Kd4 {[%clk 0:00:02.4]} 64... Kc6 {[%clk
0:00:07]} 65. Nxc4 {[%clk 0:00:02.1]} 65... g4 {[%clk 0:00:04.7]} 66. Ne3 {[%clk
0:00:02.2]} 66... g3 {[%clk 0:00:03.8]} 0-1